bitfinex/quotes_SOLUSD_20250915
["timestamp","ask_amount","ask_price","bid_price","bid_amount"]
[1757899402170,0.03,239.89,239.88,2.33962183]
[1757899402680,0.03,239.89,239.88,3.04962183]
[1757899403878,0.03,239.89,239.88,7.21837287]
[1757899405020,0.03,239.89,239.88,20.81396688]
[1757899406470,1e-08,239.92,239.91,15.93521584]
[1757899406864,1e-08,239.92,239.91,16.64521584]
[1757899407069,1e-08,239.92,239.91,49.92521584]
[1757899407869,1e-08,239.92,239.91,54.09344559]
[1757899410082,1e-08,239.92,239.91,20.81344559]
[1757899410271,1e-08,239.92,239.91,54.05344559]
[1757899411322,0.03,240.06,240.04,2.33962183]
[1757899411499,0.03,240.06,240.05,15.93521584]
[1757899411889,0.03,240.06,240.05,16.64521584]
[1757899412294,0.03,240.06,240.05,49.86521584]
[1757899412499,0.03,240.06,240.05,15.93521584]
[1757899412723,3.03962183,240.06,239.99,13.59559401]
[1757899412901,3.00962183,240.05,240.0,4.16666666]
[1757899413101,0.67,240.04,240.0,4.16666666]
[1757899413326,0.7,240.06,240.0,6.50628849]
[1757899413625,0.7,240.06,240.01,15.93521584]
[1757899413790,0.71,240.06,240.01,13.59559401]
[1757899413995,0.03,240.06,240.05,15.93521584]
[1757899414994,0.03,240.06,240.05,20.10101463]
[1757899415707,0.03,240.06,240.05,17.7613928]
[1757899415905,0.03,240.06,240.05,20.10101463]
[1757899417013,0.03,240.06,240.05,20.79101463]
[1757899417799,0.03,240.06,240.05,33.39101463]
[1757899418023,0.03,240.06,240.05,32.70101463]
[1757899418898,0.03,240.06,240.05,66.58101463]
[1757899419296,0.03,240.06,240.05,66.56101463]
[1757899419725,0.03,240.06,240.05,33.36101463]
[1757899419897,0.03,240.06,240.05,66.56101463]
[1757899420912,0.03,240.06,240.05,33.36101463]
[1757899421103,0.03,240.06,240.05,66.54101463]
[1757899422031,0.03,240.11,240.06,13.59559401]
[1757899422321,0.03,240.11,240.1,15.93521584]
[1757899422629,0.03,240.11,240.1,49.09521584]
[1757899422832,0.03,240.11,240.1,53.92014711]
[1757899423215,0.03,240.11,240.1,20.10014711]
[1757899423423,0.03,240.11,240.1,53.26014711]
[1757899424114,0.03,240.11,240.1,53.92014711]
[1757899424512,0.03,240.11,240.1,17.76052528]
[1757899424715,0.7,240.11,240.1,17.76052528]
[1757899424925,0.7,240.11,240.1,4.16493127]
[1757899425132,0.7,240.11,240.1,37.30493127]
[1757899425728,0.7,240.11,240.08,13.59559401]
[1757899425932,0.67,240.1,240.09,46.73559401]
[1757899426545,0.03,240.11,240.09,46.73559401]
[1757899426705,0.03,240.11,240.1,13.59559401]
[1757899427336,0.03,240.11,240.1,49.07521584]
[1757899427711,0.03,240.11,240.1,20.10014711]
[1757899427905,0.7,240.11,240.1,53.22014711]
[1757899428113,0.7,240.11,240.1,17.76052528]
[1757899428347,0.7,240.11,240.1,50.88052528]
[1757899429009,0.7,240.11,240.1,17.76052528]
[1757899429214,0.7,240.11,240.1,50.88052528]
[1757899429411,0.7,240.11,240.1,17.76052528]
[1757899429715,0.7,240.11,240.1,37.26493127]
[1757899429914,0.7,240.11,240.1,4.16493127]
[1757899430115,0.7,240.11,240.1,37.26493127]
[1757899430911,0.7,240.11,240.1,33.1]
[1757899432334,0.7,240.11,240.09,17.76069876]
[1757899432637,4.29090997,240.1,240.07,33.08]
[1757899432846,3.62090997,240.1,240.07,33.08]
[1757899433047,0.67,240.09,240.07,33.08]
[1757899433352,0.67,240.09,240.01,24.01163522]
[1757899433353,4.29090997,240.08,240.05,33.08]
[1757899433513,4.29090997,240.07,240.05,33.08]
[1757899433713,0.67,240.06,240.05,33.08]
[1757899434146,0.67,240.08,240.05,33.08]
[1757899434654,0.67,240.08,240.06,4.16562526]
[1757899435154,0.03,240.11,240.07,0.66]
[1757899435329,0.03,240.11,240.08,36.68090997]
[1757899435654,26.0,240.08,240.0,33.06]
[1757899435824,4.33090997,240.07,240.0,33.06]
[1757899436028,0.71,240.06,240.0,33.06]
[1757899436333,3.62090997,240.05,240.0,33.06]
[1757899436530,0.71,240.04,240.0,33.06]
[1757899436737,0.71,240.03,240.0,33.06]
[1757899437248,3.62090997,240.04,240.0,33.06]
[1757899437430,0.71,240.02,240.0,33.06]
[1757899437754,4.33090997,240.04,240.0,33.06]
[1757899437946,0.71,240.03,240.0,33.06]
[1757899438327,3.62090997,240.04,240.0,33.06]
[1757899438527,4.33090997,240.04,240.0,37.22664393]
[1757899438752,0.71,240.03,240.0,37.22664393]
[1757899439150,3.62090997,240.04,240.0,47.64331059]
[1757899439451,4.33090997,240.07,240.0,47.64331059]
[1757899439633,4.33090997,240.07,240.01,13.59559401]
[1757899439950,26.0,240.08,240.01,14.25559401]
[1757899440127,29.62090997,240.08,240.01,14.25559401]
[1757899440530,0.71,240.07,240.02,4.16631947]
[1757899440752,0.71,240.06,240.03,33.08]
[1757899440949,3.62090997,240.09,240.04,0.66]
[1757899441336,4.33090997,240.09,240.04,0.66]
[1757899441759,4.33090997,240.09,240.03,33.08]
[1757899442449,4.33090997,240.09,240.04,4.16597233]
[1757899442762,0.71,240.08,240.04,4.16597233]
[1757899443358,0.71,240.07,240.04,4.16597233]
[1757899443563,4.33090997,240.07,240.04,4.16597233]
[1757899443762,3.62090997,240.07,240.04,4.16597233]
[1757899444465,0.03,240.11,240.05,17.87650398]
[1757899444758,0.71,240.1,240.06,33.06]
[1757899444957,3.65090997,240.11,240.06,33.72]
[1757899445139,0.03,240.11,240.07,3.62090997]
[1757899445535,0.03,240.11,240.06,33.06]
[1757899445760,0.74,240.11,240.06,36.68090997]
[1757899445930,0.03,240.11,240.07,0.66]
[1757899446135,0.03,240.11,240.08,3.62090997]
[1757899446358,0.03,240.11,240.09,4.16510475]
[1757899448664,0.03,240.11,240.09,7.78601472]
[1757899448872,0.03,240.11,240.09,8.45601472]
[1757899449269,0.03,240.11,240.09,41.49601472]
[1757899449573,0.03,240.11,240.04,0.06]
[1757899449574,4.31090997,240.1,240.04,0.06]
[1757899449777,3.62090997,240.07,240.04,0.06]
[1757899450277,3.62090997,240.05,240.04,0.06]
[1757899450452,6.38380087,240.05,240.04,0.06]
[1757899450656,7.07380087,240.05,240.04,0.06]
[1757899451649,17.29479844,240.05,240.04,0.06]
[1757899452257,13.67388847,240.05,240.04,0.06]
[1757899452450,17.29479844,240.05,240.04,0.06]
[1757899452647,18.81074934,240.05,240.04,0.06]
[1757899452854,0.69,240.09,240.04,0.06]
[1757899453071,0.03,240.11,240.06,3.62090997]
[1757899453072,2.76353315,240.08,240.06,3.62090997]
[1757899453381,0.69,240.08,240.04,0.06]
[1757899453559,0.69,240.07,240.04,0.06]
[1757899454278,26.0,240.06,240.04,0.06]
[1757899454578,0.69,240.07,240.04,4.2259624]
[1757899454779,2.76433503,240.08,240.06,3.62090997]
[1757899455072,0.03,240.11,240.06,4.29090997]
[1757899455073,2.76445454,240.09,240.06,4.29090997]
[1757899455265,28.76445454,240.1,240.06,4.29090997]
[1757899455452,26.0,240.1,240.06,4.29090997]
[1757899455655,0.03,240.11,240.07,4.16545174]
[1757899455873,26.0,240.08,240.04,0.06]
[1757899456070,26.0,240.05,240.04,4.22594733]
[1757899456469,26.0,240.05,240.04,0.06]
[1757899456672,0.69,240.07,240.04,0.06]
[1757899457480,26.0,240.05,240.04,0.06]
[1757899457677,28.76367781,240.05,240.04,0.06]
[1757899457877,29.45367781,240.05,240.04,0.06]
[1757899458180,35.50887659,240.05,240.04,0.06]
[1757899458383,39.89634915,240.05,240.04,0.06]
[1757899459193,56.92558844,240.05,240.04,0.06]
[1757899459497,60.54649841,240.05,240.04,0.06]
[1757899459996,80.1509044,240.05,240.04,0.06]
[1757899460172,43.51725912,240.05,240.04,0.06]
[1757899460374,76.71725912,240.05,240.04,0.06]
[1757899460695,43.51725912,240.05,240.04,0.06]
[1757899460864,43.51725912,240.05,239.99,0.06]
[1757899460865,26.0,240.01,239.99,0.06]
[1757899461067,44.05206034,240.0,239.99,0.06]
[1757899461294,13.89634915,240.0,239.99,0.06]
[1757899461473,14.06358131,240.0,239.99,0.06]
[1757899461669,2.76367781,240.0,239.99,0.06]
[1757899461881,26.0,240.02,239.99,4.89681049]
[1757899462265,3.62090997,240.03,239.99,4.89681049]
[1757899462469,26.0,240.0,239.99,4.89681049]
[1757899463469,26.0,240.04,239.99,0.73]
[1757899463676,3.62090997,240.03,239.99,0.73]
[1757899464380,3.62090997,240.03,239.99,4.89682987]
[1757899464580,26.0,240.04,239.99,0.73]
[1757899464776,3.62090997,240.02,239.99,0.73]
[1757899464985,26.0,240.0,239.99,0.73]
[1757899465189,3.62090997,240.02,239.99,0.73]
[1757899465591,26.0,240.04,239.99,4.2268214]
[1757899465790,26.0,240.04,240.0,0.67]
[1757899465994,0.79,240.13,240.02,3.62090997]
[1757899466197,3.62090997,240.1,240.03,0.67]
[1757899466413,29.62090997,240.1,240.03,0.67]
[1757899466795,3.62090997,240.08,240.03,0.67]
[1757899466995,3.62090997,240.08,240.04,0.67]
[1757899467803,0.72,240.11,240.05,4.16579879]
[1757899468111,3.62090997,240.08,240.05,4.16579879]
[1757899468682,0.03,240.09,240.06,0.67]
[1757899469096,0.03,240.09,240.07,0.67]
[1757899469806,0.03,240.09,240.08,4.83527824]
[1757899472101,0.03,240.09,240.08,7.78618821]
[1757899472300,0.03,240.09,240.08,8.45618821]
[1757899472611,1e-08,240.12,240.09,13.59559401]
[1757899472909,0.03,240.16,240.11,17.21650398]
[1757899473212,0.03,240.16,240.15,17.21650398]
[1757899473510,0.03,240.16,240.15,55.3705681]
[1757899476205,0.03,240.16,240.15,22.0505681]
[1757899476406,0.03,240.16,240.15,55.3305681]
[1757899479517,0.03,240.16,240.15,55.3105681]
[1757899480401,0.03,240.16,240.15,22.0505681]
[1757899480597,0.03,240.16,240.15,55.3105681]
[1757899480809,0.03,240.16,240.15,55.2905681]
[1757899481324,0.72,240.3,240.16,13.59559401]
[1757899481627,0.72,240.3,240.15,72.92545503]
[1757899481628,0.72,240.3,240.28,3.62090997]
[1757899481802,0.72,240.3,240.28,36.84090997]
[1757899482122,0.1,240.31,240.28,36.84090997]
[1757899482425,0.1,240.31,240.29,4.16163802]
[1757899482616,0.72,240.3,240.29,4.16163802]
[1757899482819,4.34090997,240.3,240.17,0.68]
[1757899483133,4.34090997,240.3,240.23,3.62090997]
[1757899483327,0.72,240.29,240.24,33.22]
[1757899483628,0.72,240.28,240.24,33.22]
[1757899483827,0.72,240.27,240.24,33.22]
[1757899484033,0.72,240.26,240.23,3.62090997]
[1757899484331,0.72,240.26,240.25,33.22]
[1757899484709,0.72,240.3,240.26,4.16215766]
[1757899484914,0.72,240.29,240.26,4.16215766]
[1757899485216,0.72,240.28,240.26,14.56755181]
[1757899485423,0.72,240.27,240.26,14.56755181]
[1757899485825,0.72,240.3,240.26,14.56755181]
[1757899486016,0.72,240.29,240.26,14.56755181]
[1757899486212,0.72,240.28,240.26,14.56755181]
[1757899487026,0.72,240.28,240.26,37.36215766]
[1757899487212,0.72,240.27,240.26,33.2]
[1757899487414,0.72,240.29,240.26,4.16214164]
[1757899487626,0.72,240.28,240.26,37.34214164]
[1757899488151,0.1,240.31,240.27,4.30090997]
[1757899488328,0.1,240.31,240.28,3.62090997]
[1757899488635,0.72,240.3,240.28,33.18]
[1757899488831,0.72,240.29,240.28,33.18]
[1757899489213,0.03,240.3,240.29,4.16163802]
[1757899489417,0.75,240.3,240.29,4.16163802]
[1757899490321,0.03,240.3,240.29,4.16163802]
[1757899490714,0.03,240.3,240.29,37.32163802]
[1757899490912,0.03,240.3,240.29,38.00163802]
[1757899491236,0.03,240.3,240.29,40.94254799]
[1757899491829,0.03,240.3,240.29,39.652894]
[1757899492132,0.03,240.3,240.29,37.32163802]
[1757899492524,0.03,240.3,240.29,40.332894]
[1757899493920,0.03,240.3,240.29,53.92848801]
[1757899494931,0.03,240.3,240.29,20.76848801]
[1757899495139,0.03,240.3,240.29,53.20848801]
[1757899495432,0.03,240.3,240.29,53.90848801]
[1757899496511,0.03,240.33,240.3,13.59559401]
[1757899496710,0.03,240.33,240.32,15.92684999]
[1757899497113,0.03,240.35,240.32,16.64684999]
[1757899497313,0.67,240.45,240.34,15.92684999]
[1757899497512,0.67,240.45,240.39,2.33125598]
[1757899497719,0.67,240.45,240.4,33.12]
[1757899497921,0.67,240.44,240.4,33.12]
[1757899498232,0.67,240.44,240.41,4.15956075]
[1757899498620,0.67,240.43,240.41,4.15956075]
[1757899498916,26.0,240.5,240.41,4.15956075]
[1757899499121,0.67,240.45,240.41,4.15956075]
[1757899499432,2.33125598,240.46,240.41,4.15956075]
[1757899499433,0.67,240.44,240.41,6.49081673]
[1757899499816,2.33125598,240.45,240.41,4.15956075]
[1757899500012,3.00125598,240.43,240.37,13.59559401]
[1757899500221,3.00125598,240.43,240.38,33.08]
[1757899500429,0.67,240.43,240.38,35.41125598]
[1757899501138,0.67,240.43,240.39,4.15990681]
[1757899501638,26.0,240.44,240.4,33.08]
[1757899501935,26.0,240.44,240.4,36.13125598]
[1757899502145,0.67,240.49,240.43,2.33125598]
[1757899502345,12.21376201,240.54,240.41,14.31559401]
[1757899502346,0.67,240.52,240.44,33.8]
[1757899502540,3.99866631,240.54,240.48,2.33125598]
[1757899502720,0.67,240.54,240.5,2.33125598]
[1757899503231,0.67,240.54,240.51,4.15783127]
[1757899503421,0.1,240.55,240.5,2.33125598]
[1757899503621,0.67,240.54,240.49,35.41125598]
[1757899503825,0.67,240.54,240.5,2.33125598]
[1757899504337,0.1,240.55,240.53,2.33125598]
[1757899504539,0.1,240.55,240.52,2.33125598]
[1757899504852,0.1,240.55,240.53,33.08]
[1757899505219,0.1,240.55,240.53,37.23736394]
[1757899505443,0.1,240.55,240.54,0.72]
[1757899505636,0.1,240.55,240.53,40.28861992]
[1757899505944,0.1,240.55,240.54,16.64684999]
[1757899506532,0.1,240.55,240.54,49.70684999]
[1757899507821,0.1,240.55,240.54,16.64684999]
[1757899508041,0.1,240.55,240.54,49.68684999]
[1757899508545,0.03,240.64,240.55,28.1455836]
[1757899508747,0.03,240.64,240.63,15.92684999]
[1757899508930,0.03,240.64,240.63,49.00684999]
[1757899509246,0.03,240.64,240.63,53.87260779]
[1757899511955,0.03,240.64,240.63,54.28818357]
[1757899512421,0.03,240.64,240.63,54.24818357]
[1757899514158,0.03,240.64,240.63,53.81260779]
[1757899515147,0.03,240.64,240.63,54.22818357]
[1757899515656,1e-08,240.67,240.64,13.59559401]
[1757899515864,1e-08,240.67,240.66,20.08208974]
[1757899516027,1e-08,240.67,240.66,22.41334572]
[1757899516235,1e-08,240.67,240.66,23.12334572]
[1757899516831,1e-08,240.67,240.66,18.46083376]
[1757899517148,1e-08,240.67,240.66,56.55886969]
[1757899517738,0.03,240.75,240.68,26.0]
[1757899517942,0.03,240.75,240.68,50.75048847]
[1757899518145,0.03,240.75,240.68,53.79174445]
[1757899518553,0.03,240.75,240.68,54.20723389]
[1757899518768,0.03,240.75,240.69,13.59559401]
[1757899518937,0.03,240.75,240.74,15.92684999]
[1757899519252,0.03,240.75,240.74,48.94684999]
[1757899519960,0.03,240.75,240.74,53.10070892]
[1757899520358,0.03,240.75,240.74,53.08070892]
[1757899520545,0.03,240.75,240.74,53.79070892]
[1757899521063,0.03,240.77,240.75,13.59559401]
[1757899521064,1e-08,240.77,240.75,13.59559401]
[1757899521266,1e-08,240.77,240.76,48.90684999]
[1757899521470,1e-08,240.77,240.76,49.61684999]
[1757899521633,1e-08,240.82,240.8,13.59559401]
[1757899521830,1e-08,240.82,240.81,48.92684999]
[1757899522033,1e-08,240.82,240.81,53.78950145]
[1757899524166,1e-08,240.82,240.81,53.76950145]
[1757899524668,1e-08,240.82,240.81,18.45824547]
[1757899524859,1e-08,240.82,240.81,53.76950145]
[1757899525454,0.1,240.92,240.81,84.91438744]
[1757899525667,0.1,240.92,240.85,13.59559401]
[1757899525859,0.1,240.92,240.91,20.07777772]
[1757899526245,3.15125598,240.92,240.83,13.59559401]
[1757899526450,0.72,240.91,240.87,13.59559401]
[1757899526649,0.1,240.92,240.89,15.92684999]
[1757899526849,0.82,240.92,240.91,2.33125598]
[1757899527068,0.1,240.92,240.91,15.92684999]
[1757899527467,0.82,240.92,240.91,49.20684999]
[1757899527780,0.82,240.92,240.91,46.87559401]
[1757899527958,0.82,240.92,240.91,51.02652174]
[1757899529075,0.82,240.92,240.91,37.41092773]
[1757899529277,0.82,240.92,240.87,4.15150696]
[1757899529573,0.72,240.91,240.88,33.24]
[1757899529881,0.72,240.9,240.88,33.24]
[1757899530078,0.1,240.92,240.89,4.15127236]
[1757899530384,0.1,240.92,240.9,33.24]
[1757899530570,0.72,240.91,240.9,33.24]
[1757899530764,0.72,240.91,240.9,35.57125598]
[1757899531077,0.1,240.92,240.91,13.59559401]
[1757899531254,0.1,240.92,240.91,15.92684999]
[1757899531670,0.1,240.92,240.91,49.18684999]
[1757899532071,0.1,240.92,240.91,46.85559401]
[1757899532355,0.1,240.92,240.91,53.33777772]
[1757899533064,0.1,240.92,240.91,54.04777772]
[1757899533477,1e-08,240.92,240.91,54.04777772]
[1757899533766,1e-08,240.92,240.91,54.02777772]
[1757899534384,1e-08,240.92,240.91,51.69652174]
[1757899534588,1e-08,240.92,240.91,54.02777772]
[1757899534970,1e-08,240.92,240.91,66.30141627]
[1757899535768,1e-08,240.92,240.91,68.63267225]
[1757899536079,1e-08,240.92,240.91,70.29625435]
[1757899536459,1e-08,240.99,240.95,13.59559401]
[1757899536679,1e-08,240.99,240.98,15.92684999]
[1757899536869,1e-08,240.99,240.98,49.12684999]
[1757899537777,1e-08,240.99,240.98,13.59559401]
[1757899537979,0.72000001,240.99,240.98,13.59559401]
[1757899538178,1e-08,240.99,240.98,49.12684999]
[1757899538380,1e-08,240.99,240.98,53.27657195]
[1757899538889,1e-08,240.99,240.98,53.99657195]
[1757899540866,0.68,241.11,240.99,13.59559401]
[1757899541064,0.68,241.11,241.1,15.92684999]
[1757899541260,0.68,241.11,241.09,2.33125598]
[1757899541476,26.0,241.16,241.1,33.22]
[1757899541768,2.33125598,241.17,241.1,35.55125598]
[1757899541969,0.68,241.16,241.1,35.55125598]
[1757899542174,0.68,241.15,241.04,13.59559401]
[1757899542384,0.68,241.14,241.08,4.14790513]
[1757899542587,0.68,241.17,241.09,33.63478286]
[1757899542790,0.1,241.24,241.16,2.33125598]
[1757899542791,0.68,241.22,241.16,2.33125598]
[1757899543086,0.68,241.22,241.18,2.33125598]
[1757899543293,0.68,241.21,241.18,33.42]
[1757899543478,0.68,241.2,241.16,35.75125598]
[1757899543678,0.68,241.19,241.16,35.75125598]
[1757899543897,0.68,241.18,241.16,35.75125598]
[1757899544067,0.68,241.17,241.16,33.42]
[1757899544269,0.68,241.17,241.13,2.33125598]
[1757899544589,0.68,241.16,241.08,33.42]
[1757899544809,3.01125598,241.15,241.06,35.75125598]
[1757899545087,0.68,241.14,241.1,2.33125598]
[1757899545266,0.68,241.13,241.1,2.33125598]
[1757899545468,0.68,241.12,241.1,2.33125598]
[1757899546493,0.68,241.12,241.11,4.14748455]
[1757899547174,0.68,241.12,241.08,2.33125598]
[1757899547577,0.68,241.12,241.1,2.33125598]
[1757899547966,2.33125598,241.18,241.1,2.33125598]
[1757899548166,0.68,241.11,241.07,6.47928942]
[1757899548397,0.68,241.1,241.07,6.47928942]
[1757899548574,0.68,241.09,241.07,6.47928942]
[1757899549099,2.33125598,241.16,241.07,6.47928942]
[1757899549395,0.68,241.12,241.09,2.33125598]
[1757899549689,0.68,241.11,241.09,2.33125598]
[1757899549884,0.68,241.1,241.09,2.33125598]
[1757899550266,0.68,241.1,241.07,14.51846526]
[1757899550463,0.68,241.09,241.06,53.41517958]
[1757899550698,0.68,241.13,241.08,2.33125598]
[1757899550895,0.68,241.12,241.1,2.33125598]
[1757899551068,0.68,241.15,241.1,2.33125598]
[1757899551374,0.68,241.19,241.14,2.33125598]
[1757899551569,0.68,241.22,241.17,2.33125598]
[1757899551769,0.68,241.21,241.17,0.95212178]
[1757899551973,0.68,241.23,241.19,0.95212178]
[1757899552398,0.1,241.24,241.21,5.09788688]
[1757899552571,0.1,241.24,241.23,14.54771579]
[1757899553202,14.16341183,241.44,241.23,14.54771579]
[1757899553203,12.52253812,241.48,241.24,13.59559401]
[1757899553380,27.67424625,241.56,241.21,47.85017785]
[1757899553381,0.68,241.39,241.35,0.95212178]
[1757899553577,0.68,241.38,241.32,33.38]
[1757899553773,0.68,241.37,241.33,3.58332482]
[1757899554007,0.68,241.36,241.31,3.58332482]
[1757899554231,0.68,241.39,241.33,13.59559401]
[1757899554389,42.85693511,241.53,241.39,4.14267368]
[1757899554390,3.37578496,241.5,241.39,4.14267368]
[1757899554721,0.68,241.49,241.43,3.58332482]
[1757899555394,26.7,241.48,241.4,3.58332482]
[1757899555598,4.28332482,241.47,241.38,7.72613075]
[1757899555796,0.7,241.46,241.37,50.63891883]
[1757899556106,4.28332482,241.46,241.39,3.58332482]
[1757899556289,0.7,241.46,241.39,3.58332482]
[1757899556496,0.7,241.46,241.41,3.58332482]
[1757899556880,0.7,241.45,241.39,3.58332482]
[1757899557299,4.28332482,241.45,241.38,4.14274117]
[1757899557733,3.58332482,241.39,241.25,10.36260662]
[1757899558014,3.58332482,241.32,241.28,4.14444505]
[1757899558182,0.7,241.35,241.29,13.59559401]
[1757899558381,0.7,241.38,241.31,4.14404707]
[1757899558608,3.58332482,241.36,241.31,4.14404707]
[1757899558809,4.28332482,241.35,241.29,17.73986689]
[1757899559112,3.58332482,241.31,241.26,13.59559401]
[1757899559304,10.3550785,241.43,241.25,37.66507772]
[1757899559305,0.7,241.45,241.29,3.58332482]
[1757899559506,0.2,241.45,241.39,3.58332482]
[1757899559704,3.78332482,241.45,241.36,47.89559401]
[1757899559888,3.58332482,241.44,241.36,51.47891883]
[1757899560401,3.58332482,241.48,241.41,4.14233047]
[1757899560602,3.58332482,241.47,241.39,7.72594044]
[1757899560807,26.0,241.53,241.4,0.68]
[1757899560996,3.58332482,241.61,241.48,13.59559401]
[1757899561197,4.13804518,241.66,241.51,3.58332482]
[1757899561397,3.58332482,241.62,241.53,3.58332482]
[1757899561611,4.13700742,241.73,241.57,3.58332482]
[1757899561916,0.7,241.74,241.63,3.58332482]
[1757899562122,3.58332482,241.73,241.63,0.68]
[1757899562324,3.58332482,241.71,241.64,3.58332482]
[1757899562531,4.28332482,241.74,241.66,3.58332482]
[1757899562751,0.7,241.77,241.65,0.68]
[1757899563041,3.58332482,241.77,241.66,14.27559401]
[1757899563218,3.58332482,241.71,241.62,4.26332482]
[1757899563520,3.58332482,241.71,241.62,8.40200559]
[1757899563705,3.58332482,241.71,241.62,4.26332482]
[1757899563906,3.58332482,241.68,241.6,3.58332482]
[1757899564102,3.58332482,241.62,241.53,38.00015053]
[1757899564426,3.58332482,241.62,241.42,20.0]
[1757899564427,26.0,241.7,241.56,13.59559401]
[1757899564611,26.0,241.68,241.61,3.58332482]
[1757899565028,3.58332482,241.65,241.55,33.86]
[1757899565241,0.7,241.64,241.51,3.58332482]
[1757899565524,3.58332482,241.61,241.53,3.58332482]
[1757899566032,3.58332482,241.61,241.4,3.58332482]
[1757899566033,3.58332482,241.55,241.46,0.68]
[1757899566322,3.58332482,241.51,241.42,0.68]
[1757899566502,26.0,241.57,241.49,3.58332482]
[1757899566702,0.7,241.62,241.53,3.58332482]
[1757899566926,3.58332482,241.64,241.57,3.58332482]
[1757899567116,26.0,241.65,241.57,3.58332482]
[1757899567319,4.28332482,241.66,241.57,3.58332482]
[1757899567637,0.7,241.66,241.57,3.58332482]
[1757899567805,3.58332482,241.63,241.43,35.20682164]
[1757899568008,3.58332482,241.6,241.51,3.58332482]
[1757899568320,3.58332482,241.6,241.49,0.68]
[1757899568321,3.58332482,241.58,241.49,0.68]
[1757899568640,29.58332482,241.58,241.49,4.26332482]
[1757899568818,3.58332482,241.53,241.44,3.58332482]
[1757899569008,26.0,241.55,241.52,3.58332482]
[1757899569207,3.58332482,241.62,241.54,3.58332482]
[1757899569439,30.30332482,241.62,241.52,3.58332482]
[1757899569640,3.58332482,241.58,241.49,0.67]
[1757899569814,3.58332482,241.58,241.49,4.25332482]
[1757899570015,26.0,241.59,241.51,3.58332482]
[1757899570234,26.0,241.61,241.53,3.58332482]
[1757899570432,0.72,241.67,241.58,4.13941551]
[1757899570734,0.72,241.71,241.61,3.58332482]
[1757899570911,3.58332482,241.68,241.58,7.72274033]
[1757899571107,0.72,241.67,241.52,0.67]
[1757899571314,3.58332482,241.62,241.53,13.59559401]
[1757899571516,0.72,241.67,241.56,3.58332482]
[1757899571711,0.72,241.67,241.58,3.58332482]
[1757899571932,3.58332482,241.66,241.58,3.58332482]
[1757899572526,3.58332482,241.66,241.59,4.13924417]
[1757899572914,3.58332482,241.64,241.56,4.80961813]
[1757899573410,3.58332482,241.66,241.57,3.58332482]
[1757899573725,3.58332482,241.69,241.61,3.58332482]
[1757899574131,0.72,241.71,241.61,3.58332482]
[1757899574643,3.58332482,241.7,241.6,8.39233309]
[1757899575134,3.58332482,241.63,241.54,3.58332482]
[1757899575335,3.58332482,241.59,241.52,0.67]
[1757899575639,26.0,241.67,241.57,13.59559401]
[1757899575860,29.58332482,241.67,241.58,3.58332482]
[1757899576132,3.58332482,241.7,241.62,3.58332482]
[1757899576508,3.58332482,241.68,241.6,13.59559401]
[1757899576708,3.58332482,241.64,241.57,7.72283706]
[1757899576926,3.58332482,241.62,241.55,4.80979173]
[1757899577229,3.58332482,241.6,241.53,4.140215]
[1757899577534,13.59559401,241.71,241.57,3.58332482]
[1757899577535,26.72,241.71,241.57,3.58332482]
[1757899577708,3.58332482,241.68,241.59,3.58332482]
[1757899577905,26.72,241.71,241.63,3.58332482]
[1757899577906,29.58332482,241.71,241.63,3.58332482]
[1757899578110,29.58332482,241.71,241.61,13.59559401]
[1757899578314,26.0,241.68,241.62,3.58332482]
[1757899578512,3.58332482,241.67,241.6,3.58332482]
[1757899578710,0.72,241.69,241.59,0.67]